bitfinex-derivatives/quotes_BTCF0:USTF0_20241120
["timestamp","ask_amount","ask_price","bid_price","bid_amount"]
[1732111314709,0.27236099,94361.0,94355.0,0.01654974]
[1732111314915,0.052934,94358.0,94356.0,0.00331029]
[1732111315116,0.0523779,94358.0,94357.0,0.00331029]
[1732111315428,0.1713779,94358.0,94357.0,0.01986179]
[1732111315920,0.1713779,94358.0,94357.0,0.00331029]
[1732111316319,0.052936,94354.0,94352.0,0.3608]
[1732111316520,0.052936,94354.0,94353.0,0.0099308]
[1732111316918,0.052936,94354.0,94353.0,0.00993097]
[1732111317222,0.052936,94354.0,94352.0,0.3608]
[1732111317626,0.052937,94353.0,94352.0,0.3608]
[1732111317813,0.052937,94353.0,94349.0,8.609e-05]
[1732111317814,0.052938,94350.0,94349.0,8.609e-05]
[1732111318010,0.20633899,94350.0,94349.0,0.01001773]
[1732111318212,0.052938,94350.0,94349.0,0.0132421]
[1732111318410,0.052947,94335.0,94334.0,0.3623903]
[1732111318615,0.26575609,94335.0,94334.0,0.0181436]
[1732111318919,0.052947,94335.0,94334.0,0.0015903]
[1732111319313,0.27240099,94336.0,94334.0,0.01814511]
[1732111319518,0.052947,94335.0,94334.0,0.0015903]
[1732111320026,0.7216,94342.0,94334.0,0.0015903]
[1732111320209,0.15340099,94347.0,94334.0,0.3623903]
[1732111320828,0.15340099,94347.0,94335.0,0.0412]
[1732111321008,0.15340099,94347.0,94342.0,0.3608]
[1732111321521,0.00159022,94354.0,94342.0,0.3608]
[1732111321522,0.00159022,94354.0,94353.0,0.052937]
[1732111321914,0.119,94363.0,94351.0,0.3608]
[1732111322229,0.56713099,94365.0,94359.0,0.052933]
[1732111322524,0.052931,94364.0,94359.0,0.007933]
[1732111322725,9.729e-05,94369.0,94368.0,0.052928]
[1732111323310,9.729e-05,94369.0,94368.0,0.06947696]
[1732111323909,9.729e-05,94369.0,94368.0,0.12365503]
[1732111324412,0.05302529,94369.0,94368.0,0.01654795]
[1732111324624,0.41382529,94369.0,94368.0,0.01654795]
[1732111324817,0.53282529,94369.0,94355.0,0.24986957]
[1732111325020,0.052934,94357.0,94356.0,0.01655042]
[1732111325529,0.052934,94357.0,94344.0,0.052942]
[1732111325530,0.052939,94348.0,94347.0,0.24986957]
[1732111325722,0.052939,94348.0,94338.0,0.24986957]
[1732111325723,0.052944,94339.0,94338.0,0.24986957]
[1732111325915,0.052944,94339.0,94334.0,0.0015903]
[1732111325916,0.15340099,94345.0,94334.0,0.0015903]
[1732111326119,0.119,94347.0,94334.0,0.0015903]
[1732111326322,0.052943,94342.0,94334.0,0.0015903]
[1732111326522,0.119,94347.0,94334.0,0.30440687]
[1732111326523,0.052944,94339.0,94334.0,0.30440687]
[1732111327416,0.119,94347.0,94338.0,0.3608]
[1732111327825,0.119,94347.0,94338.0,0.61066957]
[1732111328127,0.052947,94335.0,94334.0,0.0015903]
[1732111328332,1.552947,94335.0,94334.0,0.01152293]
[1732111328542,0.052947,94335.0,94334.0,0.01152293]
[1732111328720,0.171947,94335.0,94334.0,0.01152293]
[1732111329739,0.052953,94324.0,94323.0,0.25205176]
[1732111330027,0.3608,94328.0,94314.0,0.44397897]
[1732111330230,0.3608,94328.0,94321.0,0.25218678]
[1732111330426,0.052955,94321.0,94319.0,0.25219873]
[1732111330624,0.052955,94321.0,94320.0,0.00993429]
[1732111331348,0.052955,94321.0,94319.0,0.25219873]
[1732111331631,0.052961,94309.0,94308.0,0.00013343]
[1732111331818,0.413761,94309.0,94308.0,0.01006903]
[1732111332719,1.913761,94309.0,94308.0,0.01006903]
[1732111333316,2.032481,94309.0,94308.0,0.01006903]
[1732111333529,1.671681,94309.0,94308.0,0.01006903]
[1732111337516,0.052966,94301.0,94300.0,0.06506903]
[1732111337716,0.56716699,94301.0,94300.0,0.06506903]
[1732111338129,0.68588699,94301.0,94300.0,0.06506903]
[1732111339224,0.68599125,94301.0,94300.0,0.06506903]
[1732111339418,0.68603125,94301.0,94300.0,0.06506903]
[1732111339731,0.56727125,94301.0,94300.0,0.06506903]
[1732111339922,0.68603125,94301.0,94300.0,0.06506903]
[1732111340837,0.41387026,94301.0,94300.0,0.06506903]
[1732111341022,0.00010426,94301.0,94300.0,0.06506903]
[1732111341223,0.0049,94316.0,94300.0,0.18406903]
[1732111341423,0.00159111,94320.0,94303.0,0.3608]
[1732111341625,0.00159111,94320.0,94313.0,0.3608]
[1732111342019,0.052957,94318.0,94313.0,0.3608]
[1732111342221,9.55e-05,94317.0,94313.0,0.3608]
[1732111342427,0.0530525,94317.0,94313.0,0.3608]
[1732111342842,9.55e-05,94317.0,94313.0,0.3608]
[1732111343024,0.0530525,94317.0,94313.0,0.3608]
[1732111343220,0.0530525,94317.0,94315.0,0.00106084]
[1732111344328,0.0530525,94317.0,94316.0,0.00106084]
[1732111345329,0.15374458,94348.0,94316.0,1.23213957]
[1732111345534,0.15374458,94348.0,94331.0,0.3608]
[1732111345535,0.052948,94333.0,94331.0,0.3608]
[1732111345738,0.052948,94333.0,94327.0,0.0389]
[1732111346035,0.052951,94328.0,94324.0,0.3608]
[1732111346224,1.5049,94347.0,94324.0,0.3997]
[1732111346225,0.0049,94341.0,94324.0,0.3997]
[1732111346435,0.052948,94333.0,94332.0,0.00106084]
[1732111350238,0.052959,94313.0,94312.0,0.0049]
[1732111350426,0.052959,94313.0,94305.0,0.0381]
[1732111350427,0.052962,94308.0,94305.0,0.25219873]
[1732111350632,0.052966,94301.0,94300.0,0.06506903]
[1732111350831,0.532526,94301.0,94300.0,0.06506903]
[1732111351535,2.032526,94301.0,94300.0,0.06506903]
[1732111351736,0.052974,94295.0,94294.0,0.00159078]
[1732111351937,0.052984,94277.0,94276.0,0.25232297]
[1732111352130,0.052984,94277.0,94276.0,0.00012424]
[1732111352531,0.052984,94277.0,94268.0,0.03362424]
[1732111352734,0.3608,94269.0,94263.0,0.00159132]
[1732111352933,0.052992,94264.0,94263.0,0.00159132]
[1732111353143,0.3608,94267.0,94264.0,0.31824]
[1732111353438,0.052972,94299.0,94274.0,0.052986]
[1732111353439,0.3608,94299.0,94274.0,0.052986]
[1732111353641,0.0393,94308.0,94280.0,0.00012972]
[1732111353838,0.052973,94298.0,94290.0,0.3608]
[1732111354042,0.3608,94302.0,94293.0,0.052975]
[1732111354232,0.3608,94302.0,94286.0,0.61299873]
[1732111354435,0.51454458,94319.0,94295.0,0.61299873]
[1732111354637,0.11876,94317.0,94305.0,0.413768]
[1732111354935,0.052965,94312.0,94306.0,0.0407]
[1732111355137,0.3608,94315.0,94306.0,0.4015]
[1732111355340,0.052963,94316.0,94306.0,0.29285809]
[1732111355542,0.15374458,94319.0,94306.0,0.25230471]
[1732111355848,0.052962,94317.0,94306.0,0.31812]
[1732111356029,0.51454458,94319.0,94305.0,0.25230471]
[1732111356344,0.00159072,94320.0,94306.0,0.26225866]
[1732111356345,0.052967,94308.0,94306.0,0.26225866]
[1732111356529,0.052963,94315.0,94306.0,0.00993572]
[1732111356944,0.052967,94308.0,94306.0,0.26227698]
[1732111357144,0.052967,94308.0,94306.0,0.00993572]
[1732111357343,0.052967,94308.0,94306.0,0.26227698]
[1732111357742,0.052967,94308.0,94306.0,0.00993572]
[1732111358039,0.052967,94308.0,94306.0,0.0099361]
[1732111358040,0.1188714,94307.0,94306.0,0.0099361]
[1732111358244,0.052973,94298.0,94297.0,0.25234126]
[1732111358444,0.413773,94298.0,94297.0,0.0099366]
[1732111358643,0.3608,94298.0,94292.0,0.25234126]
[1732111358948,0.3608,94298.0,94285.0,0.31232097]
[1732111358949,0.3608,94298.0,94285.0,0.25234126]
[1732111359239,0.3608,94290.0,94286.0,0.00993825]
[1732111359432,0.11876,94289.0,94287.0,0.00993825]
[1732111359634,0.05298,94286.0,94284.0,0.25234126]
[1732111359829,0.3608,94290.0,94285.0,0.26227989]
[1732111360032,0.11876,94294.0,94286.0,0.26227989]
[1732111360231,0.11876,94294.0,94288.0,0.052978]
[1732111360447,0.11876,94294.0,94290.0,0.052977]
[1732111360649,0.11876,94294.0,94287.0,0.3608]
[1732111360833,0.15374458,94306.0,94288.0,0.01656356]
[1732111360834,0.3608,94303.0,94288.0,0.01656356]
[1732111361031,0.3608,94303.0,94295.0,0.25284419]
[1732111361032,0.052974,94296.0,94295.0,0.25284419]
[1732111361341,0.052971,94302.0,94295.0,0.0099378]
[1732111361544,0.052969,94305.0,94299.0,0.25286236]
[1732111361747,0.171729,94305.0,94303.0,0.25286236]
[1732111361938,0.0001114,94307.0,94304.0,0.0099378]
[1732111362140,0.0001114,94307.0,94305.0,0.0629068]
[1732111362346,0.15374458,94337.0,94306.0,0.73565166]
[1732111362539,0.052958,94324.0,94318.0,0.25270577]
[1732111362735,0.0406,94335.0,94319.0,0.0099378]
[1732111362736,0.05455072,94320.0,94319.0,0.0099378]
[1732111362948,0.00159072,94320.0,94319.0,0.26264357]
[1732111363249,0.00168459,94320.0,94319.0,0.3280178]
[1732111363634,9.387e-05,94320.0,94319.0,0.6280178]
[1732111363834,9.387e-05,94320.0,94319.0,0.34457502]
[1732111364443,9.387e-05,94320.0,94319.0,0.67106507]
[1732111364642,0.04173,94349.0,94319.0,1.03186507]
[1732111364845,0.11856,94343.0,94332.0,0.3608]
[1732111365043,0.11856,94343.0,94336.0,0.052951]
[1732111365238,0.11856,94343.0,94332.0,0.3608]
[1732111365239,0.11856,94343.0,94337.0,0.0628878]
[1732111365546,0.11856,94343.0,94332.0,0.3608]
[1732111365547,0.11856,94347.0,94343.0,0.052947]
[1732111365745,0.11856,94347.0,94332.0,0.3608]
[1732111365746,0.00113,94349.0,94346.0,0.3608]
[1732111365940,0.00012041,94346.0,94345.0,0.052946]
[1732111366138,0.00012041,94346.0,94345.0,0.00993235]
[1732111366936,0.05306641,94346.0,94345.0,0.00993235]
[1732111367358,0.05295,94338.0,94337.0,0.04363981]
[1732111367545,0.00012041,94346.0,94327.0,0.0359]
[1732111367757,0.05295,94339.0,94329.0,0.3608]
[1732111367952,0.3608,94344.0,94330.0,0.00993278]
[1732111368160,0.052948,94343.0,94332.0,0.052953]
[1732111368336,0.052948,94343.0,94333.0,0.00993278]
[1732111368648,0.00012041,94346.0,94338.0,0.15374458]
[1732111368838,0.00012041,94346.0,94345.0,0.3608]
[1732111369042,0.00012041,94346.0,94345.0,0.68873278]
[1732111369543,0.00012041,94346.0,94345.0,0.68880843]
[1732111370743,0.00012041,94346.0,94345.0,0.37080843]
[1732111370942,0.00012041,94346.0,94345.0,0.68880843]
[1732111371448,1e-08,94349.0,94348.0,0.052945]
[1732111371647,1e-08,94349.0,94348.0,0.21662236]
[1732111371845,1e-08,94349.0,94348.0,0.53458236]
[1732111372353,1.017e-05,94354.0,94348.0,0.51662236]
[1732111372550,0.0374,94382.0,94353.0,0.51454458]
[1732111372755,0.0374,94382.0,94377.0,0.052928]
[1732111373140,0.0374,94382.0,94376.0,0.3608]
[1732111373345,0.11852,94378.0,94363.0,0.0049]
[1732111373541,0.11852,94378.0,94358.0,0.0049]
[1732111373542,0.052938,94359.0,94358.0,0.0049]
[1732111373847,0.052938,94359.0,94358.0,0.00993013]
[1732111374868,0.038,94371.0,94358.0,0.00993013]
[1732111375044,0.3608,94372.0,94354.0,0.0374]
[1732111375248,0.3608,94372.0,94365.0,0.052935]
[1732111375859,0.3608,94372.0,94366.0,0.052934]
[1732111376160,0.3608,94372.0,94357.0,0.3608]
[1732111376361,0.11848,94377.0,94358.0,0.00993054]
[1732111376546,0.11848,94377.0,94357.0,0.6608]
[1732111376547,0.11848,94377.0,94366.0,0.3608]
[1732111376753,0.00083833,94379.0,94374.0,0.05293]
[1732111377559,0.00083833,94379.0,94378.0,0.413728]
[1732111377951,0.0388,94396.0,94381.0,0.052926]
[1732111378258,0.052923,94387.0,94381.0,0.052926]
[1732111378567,0.052921,94390.0,94382.0,0.052925]
[1732111378747,0.0388,94396.0,94382.0,0.052925]
[1732111378950,0.0388,94396.0,94378.0,0.3608]
[1732111379144,0.052927,94379.0,94373.0,0.05293]
[1732111379347,0.052927,94379.0,94375.0,0.3608]
[1732111379958,0.3608,94389.0,94376.0,0.052929]
[1732111379959,0.052925,94383.0,94376.0,0.052929]
[1732111380150,0.052925,94383.0,94375.0,0.3608]
[1732111380356,0.052926,94383.0,94377.0,0.052928]
[1732111380657,0.052926,94383.0,94375.0,0.3608]
[1732111380658,0.052926,94383.0,94379.0,0.052927]
[1732111381063,0.11848,94395.0,94380.0,0.052927]
[1732111381255,0.11848,94395.0,94375.0,0.43491273]
[1732111381448,0.052927,94380.0,94375.0,0.38198373]
[1732111381757,0.052927,94380.0,94376.0,0.00992834]
[1732111381961,0.052927,94380.0,94375.0,0.38198373]
[1732111381962,0.052927,94380.0,94379.0,0.052927]
[1732111382258,0.052924,94386.0,94381.0,0.052926]
[1732111382457,0.052924,94386.0,94375.0,0.38198373]
[1732111382759,0.052924,94385.0,94381.0,0.052926]
[1732111382960,0.3608,94389.0,94375.0,0.33698373]
[1732111383160,0.3608,94389.0,94366.0,0.04302476]
[1732111383359,0.3608,94389.0,94367.0,0.00992862]
[1732111383561,0.05293,94374.0,94369.0,0.052933]
[1732111383761,0.0424,94373.0,94370.0,0.00992862]
[1732111384054,0.0424,94373.0,94368.0,0.02118031]
[1732111384258,0.0424,94373.0,94372.0,0.052931]
[1732111384558,0.0424,94373.0,94369.0,0.00992896]
[1732111384559,0.52168,94373.0,94369.0,0.00992896]
[1732111384762,0.052935,94366.0,94360.0,0.052937]
[1732111384956,0.0415,94372.0,94356.0,0.04220403]
[1732111385150,0.052937,94361.0,94356.0,0.05294]
[1732111385365,0.052937,94361.0,94359.0,0.052938]
[1732111385755,0.0415,94372.0,94355.0,0.05294]
[1732111385957,0.052937,94363.0,94357.0,0.052939]
[1732111386159,0.052936,94363.0,94357.0,0.052939]
[1732111386350,0.052937,94362.0,94357.0,0.052939]
[1732111386554,0.052938,94360.0,94349.0,0.54945655]
[1732111386756,0.3608,94368.0,94349.0,0.3608]
[1732111387062,0.052935,94365.0,94349.0,0.3608]
[1732111387258,0.0424,94373.0,94361.0,0.3608]
[1732111387471,0.0424,94373.0,94349.0,0.3608]
[1732111387472,0.3608,94362.0,94352.0,0.0049]
[1732111387762,0.052943,94350.0,94349.0,0.3608]
[1732111388158,0.052943,94350.0,94345.0,7.565e-05]
[1732111388159,0.052946,94346.0,94345.0,7.565e-05]
[1732111388352,0.052946,94346.0,94336.0,0.00158933]
[1732111388353,0.052951,94337.0,94336.0,0.00158933]
[1732111388563,0.56749558,94337.0,94336.0,0.00158933]
[1732111388864,0.56749558,94337.0,94326.0,0.0049]
[1732111388865,0.052956,94327.0,94326.0,0.0049]
[1732111389063,0.05296,94321.0,94319.0,0.43890968]
[1732111389263,0.05303565,94320.0,94319.0,0.43890968]
[1732111389880,0.05303565,94320.0,94319.0,0.31210968]
[1732111390055,0.05303565,94320.0,94319.0,0.18530968]
[1732111390365,7.565e-05,94320.0,94315.0,0.16192405]
[1732111390574,0.56750758,94316.0,94310.0,0.00011242]
[1732111390862,0.413765,94311.0,94310.0,0.00011242]
[1732111391268,0.3608,94311.0,94298.0,0.23094715]
[1732111391467,0.052971,94302.0,94298.0,0.23094715]
[1732111391656,0.052971,94302.0,94287.0,0.31479342]
[1732111391657,0.3608,94301.0,94287.0,0.31479342]
[1732111391964,0.052971,94302.0,94299.0,0.052972]
[1732111392265,0.052971,94301.0,94299.0,0.052972]
[1732111392463,0.3608,94303.0,94288.0,0.31479342]
[1732111392664,0.052971,94301.0,94296.0,0.052974]
[1732111393466,0.3608,94311.0,94297.0,0.01987379]
[1732111393668,0.052966,94310.0,94303.0,0.052969]
[1732111393969,0.052968,94307.0,94304.0,0.00331242]
[1732111394154,0.052968,94307.0,94305.0,0.00331242]
[1732111394359,0.3608,94311.0,94306.0,0.00331242]
[1732111394564,0.3608,94311.0,94307.0,0.00331242]
[1732111394865,0.413767,94308.0,94303.0,0.05297]
[1732111395067,0.15382023,94320.0,94311.0,0.052965]
[1732111395068,0.052962,94317.0,94311.0,0.052965]
[1732111395256,7.565e-05,94320.0,94304.0,0.15374458]
[1732111395455,7.565e-05,94320.0,94309.0,0.052966]
[1732111395456,0.3608,94312.0,94309.0,0.052966]
[1732111395658,0.3608,94312.0,94310.0,0.00331209]
[1732111395863,0.413765,94312.0,94310.0,0.00331209]
[1732111396069,0.413765,94312.0,94311.0,0.00331209]
[1732111396265,0.3608,94312.0,94297.0,0.052973]
[1732111396468,0.052969,94304.0,94298.0,0.00331224]
[1732111396676,0.052969,94304.0,94299.0,0.00331224]
[1732111396870,0.052969,94304.0,94300.0,0.00331224]
[1732111397068,0.052969,94304.0,94301.0,0.00331233]
[1732111397275,0.052969,94304.0,94302.0,0.00331233]
[1732111397477,0.3608,94303.0,94297.0,0.09505059]
[1732111397770,0.3608,94303.0,94298.0,0.00331238]
[1732111397974,0.3608,94303.0,94299.0,0.00331238]
[1732111398173,0.3608,94303.0,94300.0,0.00331238]
[1732111398174,0.15374458,94301.0,94300.0,0.00331238]
[1732111398363,0.052972,94300.0,94294.0,0.052975]
[1732111398568,0.052972,94300.0,94295.0,0.00331266]
[1732111398873,0.1228,94301.0,94296.0,0.05628666]
[1732111399076,0.1228,94301.0,94289.0,0.052977]
[1732111399375,0.052972,94300.0,94288.0,0.0407]
[1732111399674,0.1228,94302.0,94293.0,0.15374458]
[1732111399969,0.052973,94297.0,94294.0,0.00331255]
[1732111400159,0.052973,94297.0,94295.0,0.00331255]
[1732111400366,0.08967668,94302.0,94296.0,0.00331255]
[1732111400572,0.08967668,94302.0,94297.0,0.00331255]
[1732111400771,0.08967668,94302.0,94296.0,0.052973]
[1732111400968,0.08967668,94302.0,94289.0,0.052978]
[1732111401268,0.3608,94303.0,94288.0,0.0407]
[1732111401269,0.3608,94303.0,94290.0,0.01656164]
[1732111401470,0.052966,94311.0,94301.0,0.052971]
[1732111401672,0.1228,94310.0,94302.0,0.05297]
[1732111401862,0.1228,94310.0,94303.0,0.05628211]
[1732111402062,0.1228,94310.0,94291.0,0.3608]
[1732111402063,0.4836,94312.0,94304.0,0.01324829]
[1732111402265,0.052966,94311.0,94304.0,0.01324829]
[1732111402467,0.052968,94306.0,94305.0,0.00331207]
[1732111403264,0.052974,94295.0,94289.0,0.0049]
[1732111403467,0.052973,94298.0,94290.0,0.01987426]
[1732111403774,0.3608,94297.0,94291.0,0.01987426]
[1732111403967,0.3608,94299.0,94292.0,0.01987426]
[1732111404167,0.3608,94299.0,94293.0,0.01987426]
[1732111404369,0.052975,94295.0,94294.0,0.01987426]
[1732111404570,0.3608,94299.0,94294.0,0.02981153]
[1732111404772,0.052974,94297.0,94295.0,0.01324964]
[1732111405070,0.052974,94297.0,94296.0,0.01324964]
[1732111405471,0.052974,94297.0,94296.0,0.01324969]
[1732111405779,0.052974,94297.0,94296.0,0.00331242]
[1732111406273,0.3608,94299.0,94288.0,0.08270702]
[1732111406474,0.413778,94289.0,94288.0,0.08270702]
[1732111406676,0.413778,94289.0,94288.0,0.0033127]
[1732111406863,0.05298,94285.0,94284.0,0.0405]
[1732111407067,0.05298,94285.0,94284.0,0.043813]
[1732111407674,0.05298,94285.0,94284.0,0.096794]
[1732111408068,0.05298,94285.0,94284.0,0.043813]
[1732111408679,0.05298,94285.0,94284.0,0.0405]
[1732111408877,0.3608,94289.0,94288.0,0.052978]
[1732111409379,0.3608,94289.0,94288.0,0.06291647]
[1732111409680,0.2991,94289.0,94288.0,0.06291647]
[1732111409986,0.2991,94289.0,94288.0,0.08279304]
[1732111410283,0.26597265,94289.0,94288.0,0.08279304]
[1732111410573,0.1228,94297.0,94295.0,0.052974]
[1732111410775,0.1228,94301.0,94296.0,0.00993847]
[1732111410977,0.1228,94301.0,94288.0,0.3608]
[1732111410978,0.05297,94303.0,94297.0,0.02650059]
[1732111411282,7.565e-05,94320.0,94298.0,0.32805847]
[1732111411466,0.05303665,94320.0,94316.0,0.052963]
[1732111411667,7.565e-05,94320.0,94317.0,0.0376]
[1732111412183,0.413762,94318.0,94302.0,0.3608]
[1732111412398,0.3608,94318.0,94305.0,0.0376]
[1732111412573,0.3608,94318.0,94301.0,0.14634458]
[1732111412875,7.565e-05,94320.0,94317.0,0.052962]
[1732111413070,7.565e-05,94320.0,94306.0,0.31441237]
[1732111413271,7.565e-05,94320.0,94308.0,0.31441237]
[1732111413481,0.052971,94302.0,94301.0,0.31441237]
[1732111413673,0.3608,94309.0,94298.0,0.31441237]
[1732111413876,0.3608,94309.0,94301.0,0.01656299]
[1732111413877,0.052971,94302.0,94301.0,0.01656299]
[1732111414072,0.3608,94309.0,94301.0,0.01656299]
[1732111414073,0.052969,94304.0,94301.0,0.01656299]
[1732111414280,0.1228,94305.0,94297.0,0.31441237]
[1732111414281,0.052973,94299.0,94297.0,0.31441237]
[1732111414473,0.052973,94298.0,94297.0,0.31441237]
[1732111414776,0.052973,94297.0,94295.0,0.31441237]
[1732111414983,0.052973,94297.0,94296.0,0.44913729]
[1732111415477,0.052973,94297.0,94296.0,0.4126991]
[1732111415880,0.052973,94297.0,94296.0,0.45245015]
[1732111416581,0.052973,94297.0,94296.0,0.45244616]
[1732111416767,0.052973,94297.0,94296.0,0.82974074]
[1732111416973,0.052973,94297.0,94296.0,0.40607405]
[1732111417276,0.052973,94297.0,94296.0,0.45141821]
[1732111417476,0.052973,94297.0,94296.0,0.49447884]
[1732111417677,0.052973,94297.0,94296.0,0.49116649]
[1732111417881,0.052973,94297.0,94296.0,0.49142479]
[1732111418177,0.052973,94297.0,94296.0,0.47906245]
[1732111418478,0.052973,94297.0,94296.0,0.9192687]
[1732111418782,0.052973,94297.0,94296.0,0.8662947]
[1732111419077,0.3608,94300.0,94299.0,0.052972]
[1732111419276,0.4836,94300.0,94299.0,0.86626875]
[1732111419470,0.3608,94300.0,94299.0,0.86626875]
[1732111419670,0.3608,94300.0,94299.0,0.4889739]
[1732111420072,0.3608,94300.0,94299.0,0.49891159]
[1732111420276,0.3608,94300.0,94299.0,0.4889739]
[1732111420473,0.413772,94300.0,94299.0,0.4360019]
[1732111420785,0.3608,94300.0,94299.0,0.4889739]
[1732111421585,0.3608,94300.0,94299.0,0.95647069]
[1732111421877,0.12284,94308.0,94299.0,0.91343622]
[1732111422083,0.12284,94308.0,94306.0,0.052968]
[1732111422281,0.12284,94308.0,94300.0,0.91343622]
[1732111422282,0.3608,94310.0,94309.0,0.052967]
[1732111422484,0.3608,94310.0,94309.0,0.46246997]
[1732111422673,0.12224,94317.0,94316.0,0.052963]
[1732111422981,0.12224,94317.0,94316.0,0.40950297]
[1732111423177,0.175202,94317.0,94316.0,0.40950297]
[1732111424481,0.12224,94317.0,94316.0,0.40950297]
[1732111424681,0.12224,94317.0,94316.0,0.44590414]
[1732111425077,0.175202,94317.0,94316.0,0.39294114]
[1732111425281,0.12224,94317.0,94316.0,0.39294114]
[1732111425587,7.565e-05,94320.0,94319.0,0.052961]
[1732111425784,0.17527665,94320.0,94319.0,0.39294114]
[1732111426176,0.12231565,94320.0,94319.0,0.77339149]
[1732111426382,0.17527565,94320.0,94319.0,0.40287658]
[1732111426583,0.17527565,94320.0,94319.0,0.78986768]
[1732111426785,0.12231565,94320.0,94319.0,0.4095002]
[1732111427084,0.17527565,94320.0,94319.0,0.4095002]
[1732111427279,7.565e-05,94320.0,94319.0,0.4095002]
[1732111427474,7.565e-05,94320.0,94319.0,0.45583749]
[1732111427678,7.565e-05,94320.0,94319.0,0.42739618]
[1732111427975,0.3608,94352.0,94335.0,0.052952]
[1732111428282,0.3608,94366.0,94320.0,0.05296]
[1732111428283,1.5,94366.0,94343.0,0.31682828]
[1732111428487,0.052939,94358.0,94344.0,0.02649404]
[1732111428685,0.052936,94363.0,94354.0,0.31637882]
[1732111428877,0.052937,94362.0,94354.0,0.31637882]
[1732111429075,0.00011242,94361.0,94355.0,0.00993198]
[1732111429271,0.052939,94358.0,94356.0,0.00993198]
[1732111429481,0.052939,94358.0,94357.0,0.00993198]
[1732111429675,0.052939,94358.0,94351.0,0.052943]
[1732111429880,0.052939,94358.0,94352.0,0.00993122]
[1732111430182,0.36091242,94361.0,94346.0,0.31603031]
[1732111430388,0.36091242,94361.0,94352.0,0.052942]
[1732111430583,0.36091242,94361.0,94360.0,0.052938]
[1732111430784,0.00011242,94361.0,94360.0,0.052938]
[1732111430989,0.00159005,94372.0,94370.0,0.052932]
[1732111431885,0.00159005,94372.0,94365.0,0.00013503]
[1732111432085,0.05452105,94372.0,94366.0,0.00992949]
[1732111432285,0.052933,94369.0,94365.0,0.00013503]
[1732111432490,0.00159005,94372.0,94365.0,0.00013503]
[1732111432680,0.052934,94367.0,94365.0,0.00013503]
[1732111432986,0.3608,94366.0,94365.0,0.05307003]
[1732111433194,0.3608,94366.0,94365.0,0.00013503]
[1732111433385,0.413735,94366.0,94365.0,0.00013503]
[1732111434083,0.3608,94366.0,94365.0,0.00013503]
[1732111434691,0.413735,94366.0,94365.0,0.00013503]
[1732111434989,0.853855,94366.0,94365.0,0.00013503]
[1732111435294,1.153855,94366.0,94365.0,5.939e-05]
[1732111435686,2.69747482,94366.0,94365.0,5.939e-05]
[1732111436089,2.69755046,94366.0,94365.0,5.939e-05]
[1732111436479,2.39755046,94366.0,94365.0,5.939e-05]
[1732111436885,2.69755046,94366.0,94365.0,5.939e-05]
[1732111437296,2.39755046,94366.0,94365.0,5.939e-05]
[1732111437895,2.27535046,94366.0,94365.0,5.939e-05]
[1732111438084,2.39755046,94366.0,94365.0,5.939e-05]
[1732111438597,2.07963046,94366.0,94365.0,5.939e-05]
[1732111438788,1.91381064,94366.0,94365.0,5.939e-05]
[1732111439103,0.53601064,94366.0,94365.0,5.939e-05]
[1732111439779,0.41381064,94366.0,94365.0,5.939e-05]
[1732111439989,0.53601064,94366.0,94365.0,0.05299439]
[1732111440496,0.53601064,94366.0,94365.0,5.939e-05]
[1732111442411,0.53597064,94366.0,94365.0,5.939e-05]
[1732111442586,0.53597064,94366.0,94358.0,0.0378]
[1732111442587,0.48303564,94366.0,94358.0,0.0378]
[1732111442788,0.48303564,94366.0,94349.0,0.0394]
[1732111442993,0.052938,94360.0,94350.0,0.00993119]
[1732111443185,0.48303564,94366.0,94351.0,0.00993119]
[1732111443382,0.3608,94354.0,94349.0,0.08269168]
[1732111443600,0.052944,94351.0,94350.0,0.00993139]
[1732111443992,0.052944,94351.0,94349.0,0.08269168]
[1732111444189,0.3608,94354.0,94349.0,0.08269168]
[1732111444392,0.052944,94350.0,94349.0,0.08269168]
[1732111444592,0.3608,94354.0,94349.0,0.09262377]
[1732111444798,0.15516205,94372.0,94349.0,0.08269168]
[1732111444988,0.052937,94362.0,94358.0,0.052939]
[1732111445190,0.15516205,94372.0,94349.0,0.08269168]
[1732111445394,0.052942,94354.0,94350.0,0.00993167]
[1732111445587,0.052933,94369.0,94351.0,0.00993167]
[1732111445894,0.052943,94352.0,94349.0,0.08269168]
[1732111446103,0.15516205,94372.0,94349.0,0.08269168]
[1732111446289,0.052943,94351.0,94349.0,0.08269168]
[1732111446798,0.3608,94355.0,94354.0,0.052941]
[1732111447702,0.36087564,94366.0,94357.0,0.052939]
[1732111447887,0.052936,94364.0,94358.0,0.052939]
[1732111448087,0.36087564,94366.0,94358.0,0.052939]
[1732111448388,0.36087564,94366.0,94349.0,0.08269168]
[1732111448389,0.514372,94361.0,94349.0,0.08269168]
[1732111448589,0.413744,94350.0,94349.0,0.08269168]
[1732111449200,0.413744,94350.0,94349.0,0.0394]
[1732111451091,0.12216,94353.0,94349.0,0.0394]
[1732111451293,0.12216,94353.0,94352.0,0.052943]
[1732111451490,0.3608,94361.0,94356.0,0.05294]
[1732111451693,0.3608,94361.0,94357.0,0.0358]
[1732111451991,0.052938,94361.0,94357.0,0.0358]
[1732111452193,0.12216,94362.0,94357.0,0.0358]
[1732111452498,7.564e-05,94366.0,94363.0,0.052936]
[1732111452691,0.052936,94365.0,94364.0,0.2524129]
[1732111452890,0.052936,94365.0,94359.0,0.052938]
[1732111452891,0.052936,94365.0,94359.0,0.3149183]
[1732111453098,7.564e-05,94366.0,94362.0,0.052937]
[1732111453293,7.564e-05,94366.0,94363.0,0.0379]
[1732111454091,0.052936,94364.0,94363.0,0.0379]
[1732111455102,7.564e-05,94366.0,94363.0,0.0379]
[1732111455691,7.564e-05,94366.0,94365.0,0.052935]
[1732111455901,7.564e-05,94366.0,94365.0,0.43800907]
[1732111456902,0.05301064,94366.0,94365.0,0.38507407]
[1732111457095,7.564e-05,94366.0,94365.0,0.2531804]
[1732111457296,7.564e-05,94366.0,94365.0,0.06286538]
[1732111457595,0.00159005,94372.0,94365.0,0.38629538]
[1732111457796,0.3608,94393.0,94385.0,0.052924]
[1732111457797,0.052921,94391.0,94385.0,0.052924]
[1732111458103,0.12316,94392.0,94387.0,0.2532943]
[1732111458104,0.052922,94390.0,94387.0,0.2532943]